[Event "55th Iranian-ch Men Final 2022"]
[Site "Iran"]
[Date "2022.06.16"]
[Round "2.5"]
[White "Khamisi, S Jafar"]
[Black "Omidi, Arya"]
[Result "0-1"]
[ECO "B90"]
[WhiteElo "2118"]
[BlackElo "2321"]
[Annotator "TA"]
[PlyCount "62"]
[EventDate "2022.06.15"]
[EventType "tourn"]
[EventCountry "IRI"]
[SourceTitle "playchess.com"]
[Source "ChessBase"]
[SourceQuality "1"]
[TimeControl "40/5400+30:1800+30"]

{[%evp 21,62,16,0,0,0,0,0,0,0,0,7,15,31,31,19,0,110,93,91,92,171,68,189,0,212,154,161,137,450,195,432,-75,-58,-52,0,-371,-348,-541,-522,-29981,-29982,-29995,-29996]} 1. e4 {[%emt 0:00:08]} c5 {[%emt 0:00:23]} 2. Nf3 {[%emt 0:00:23]} d6 {[%emt 0:00:08]} 3. d4 {[%emt 0:00:14]} cxd4 {[%emt 0:00:06]} 4. Nxd4 {[%emt 0:00:06]} Nf6 {[%emt 0:00:05]} 5. Nc3 {[%emt 0:00:10]} a6 {[%emt 0:00:10]} 6. Be3 {[%emt 0:00:19]} e5 {[%emt 0:00:16]} 7. Nb3 {[%emt 0:00:10]} Be7 {[%emt 0:00:09]} 8. f3 {[%emt 0:00:22]} Be6 {[%emt 0:00:09]} 9. Qd2 {[%emt 0:00:14]} h5 {[%emt 0:00:28]} 10. O-O-O {[%emt 0:00:26]} Nbd7 {[%emt 0:00:28]} 11. Kb1 {[%emt 0:00:51]} Rc8 $1 {[%emt 0:00:12][%mdl 4] is currently scoring better than 11...b5.} 12. h4 {[%emt 0:01:04] B90: Sicilian Najdorf: Unusual White 6th moves, 6 Be3 Ng4 and 6 Be3 e5.} b5 {[%emt 0:00:15]} 13. a3 {[%emt 0:00:20]} O-O {[%emt 0:00:11]} 14. Bg5 {[%emt 0:01:00] The position is equal.} Re8 {[%emt 0:00:08]} 15. g3 {[%emt 0:03:49][%cal Bg2g3,Bg3g4,Bg4h5][%mdl 32] [#]} Qc7 $146 {[%emt 0:07:44]} ({Predecessor:} 15... Qb6 16. Bh3 a5 17. Nd5 Bxd5 18. exd5 Ra8 19. g4 a4 20. Nc1 hxg4 21. Be3 Qc7 22. fxg4 {0-1 (39) Aroshidze,L (2504)-Santos Ruiz,M (2517) Linares 2018}) 16. Bh3 {[%emt 0:08:35]} Rb8 {[%emt 0:13:30]} 17. Bxe6 {[%emt 0:17:16]} fxe6 {[%emt 0:00:20]} 18. g4 {[%emt 0:00:24]} a5 {[%emt 0:06:11]} (18... hxg4 $11 19. fxg4 a5 20. Bxf6 Nxf6) 19. gxh5 $1 $16 {[%emt 0:58:33]} b4 {[%emt 0:12:24]} 20. axb4 {[%emt 0:00:21]} Rxb4 {[%emt 0:08:02]} (20... axb4 $16 {is a better defense.} 21. Ne2 Nc5) 21. Na2 {[%emt 0:01:30]} ({Better is} 21. Bxf6 $18 Nxf6 22. h6) 21... Rb5 {[%emt 0:10:23]} (21... Rb7 $14) 22. Nc3 $2 {[%emt 0:03:11]} (22. Bxf6 $18 Nxf6 23. Nc3) 22... Rb7 $2 {[%emt 0:04:05]} (22... Rb4 $11 {and Black is okay.}) 23. Rhg1 {[%emt 0:01:24]} a4 {[%emt 0:03:43]} 24. Nxa4 {[%emt 0:00:34]} Qc4 $2 {[%emt 0:06:47][%mdl 8192] [#]} (24... Ra8 $16 {is a better chance.}) 25. Nc3 {[%emt 0:00:30]} (25. Na5 Qxa4 26. Bxf6 (26. Nxb7 Ra8 $11) 26... Bxf6 27. Nxb7 Ra8 $11) (25. Bh6 $142 $1 Nxh5 26. Bxg7 (26. Na5 Qxa4 27. Nxb7 Ra8 $11) 26... Nxg7 27. Rxg7+ $1 {[%mdl 512]} (27. Qh6 Bf8 $11) (27. Na5 Qxa4 28. Nxb7 Ra8 $11) 27... Kxg7 28. Rg1+ Kf7 29. Qh6 $1) 25... Nc5 $2 {[%emt 0:01:41]} (25... Ra8) 26. Nxc5 $2 {[%emt 0:00:49]} (26. Bxf6 $18 Bxf6 27. Na5) 26... Qxc5 $17 {[%emt 0:01:52]} 27. Qd3 {[%emt 0:00:45]} Reb8 $40 {[%emt 0:00:57][%mdl 128] Black attacks.} (27... Ra8 $1 $15 28. h6 (28. Bxf6 $2 Rxb2+ 29. Kc1 Bxf6 $19) 28... Rxb2+ $1 29. Kc1 d5 30. Bxf6 (30. h7+ $2 Kh8 $19) 30... Ra1+ 31. Kd2 Qf2+ 32. Qe2 Qd4+ 33. Qd3 Qf2+ 34. Qe2 Qd4+ 35. Qd3 Rxd1+ 36. Rxd1 Qf2+ 37. Qe2 (37. Kc1 $2 Ba3 $19) 37... Qd4+ 38. Qd3 (38. Kc1 $2 Qxc3 39. h7+ Kxh7 $19) 38... Qf2+ 39. Qe2 (39. Kc1 $2 Ba3 $19) 39... Qd4+ 40. Qd3 (40. Kc1 $2 Qxc3 41. h7+ Kxh7 $19)) 28. b3 $2 {[%emt 0:00:28][%mdl 8192] [#]} (28. h6 $11) 28... Qa3 $1 $19 {[%emt 0:01:05][%cal Ob7b3] ( -> ...Rxb3+!)} 29. Qc4 {[%emt 0:00:33]} (29. Bc1 {[#] gets mated.} Rxb3+ $1 {[%mdl 512]} 30. cxb3 Qxb3+ 31. Ka1 Ra8+) (29. Na4 {was necessary.} Qxa4 30. Kb2) 29... Ra7 {[%emt 0:01:33][%csl Ga7][%cal Ra3a1]} 30. Qxe6+ {[%emt 0:00:17]} Kh8 {[%emt 0:00:54][%csl Ga7][%cal Ra3a1]} 31. Na4 {[%emt 0:00:27]} Rxa4 {[%emt 0:00:13] Weighted Error Value: White=1.31/Black=0.64} 0-1

[Event "55th Iranian-ch Men Final 2022"]
[Site "Iran"]
[Date "2022.06.16"]
[Round "2.6"]
[White "Daneshvar, Bardiya"]
[Black "Naderi, Abdollah"]
[Result "1/2-1/2"]
[ECO "E61"]
[WhiteElo "2486"]
[BlackElo "2050"]
[Annotator "TA"]
[PlyCount "46"]
[EventDate "2022.06.15"]
[EventType "tourn"]
[EventCountry "IRI"]
[SourceTitle "playchess.com"]
[Source "ChessBase"]
[SourceQuality "1"]
[TimeControl "40/5400+30:1800+30"]

{[%evp 16,46,39,35,31,39,51,0,8,0,0,0,3,-10,-19,-21,-9,-22,-26,-39,-35,-43,-45,-35,-35,-54,-64,-110,-98,-105,-93,-100,-102]} 1. c4 {[%emt 0:00:17]} Nf6 {[%emt 0:05:45]} 2. Nc3 {[%emt 0:00:01]} c5 {[%emt 0:01:08]} 3. g3 g6 {[%emt 1:25:07]} 4. Bg2 {[%emt 0:01:08]} Bg7 {[%emt 0:00:30]} 5. e3 {[%emt 1:31:34]} O-O {[%emt 0:00:00]} 6. Nge2 {[%emt 0:00:00]} Nc6 {[%emt 0:00:00]} 7. O-O {[%emt 0:00:00]} d6 {[%emt 0:00:00]} 8. b3 {[%emt 0:00:00] 8.d3 is becoming the main line.} Bf5 {[%emt 0:00:00]} 9. d4 {[%emt 0:00:00] is the legacy move (9.d3).} cxd4 {[%emt 0:00:00] E61: King's Indian: Early deviations for White, including Smyslov System.} 10. Nxd4 {[%emt 0:00:00]} Bg4 {[%emt 0:00:00]} 11. f3 {[%emt 0:00:00]} Bd7 {[%emt 0:00:00] The position is equal.} 12. Bb2 {[%emt 0:00:00]} Rc8 {[%emt 0:00:00] [#]} 13. Qd2 $146 {[%emt 0:00:00]} ({Predecessor:} 13. Kh1 a6 14. Qe2 Qa5 15. Nxc6 Bxc6 16. e4 Bd7 17. Qe1 Rfe8 18. Rf2 Qh5 19. Rd1 {1-0 (39) Kreisl,R (2424)-Maurer,C (2177) Bayern 2016}) 13... a6 {[%emt 0:00:00]} 14. Nce2 {[%emt 0:00:00]} b5 {[%emt 0:00:00]} 15. cxb5 {[%emt 0:00:00]} Nxd4 {[%emt 0:00:00]} 16. Nxd4 {[%emt 0:00:00]} axb5 {[%emt 0:00:00]} 17. f4 {[%emt 0:00:00]} Qb6 {[%emt 0:00:00]} 18. a4 {[%emt 0:00:00]} bxa4 {[%emt 0:00:00]} 19. bxa4 {[%emt 0:00:00]} e5 {[%emt 0:00:00]} 20. a5 {[%emt 0:00:00]} Qa7 {[%emt 0:00:00]} 21. Nf3 {[%emt 0:00:00]} (21. Ne2 $15) 21... Ng4 {[%emt 0:00:00] Black is better.} 22. Ra3 {[%emt 0:00:00] [#]} Bf5 $1 {[%emt 0:00:00] ...Rc2 is the strong threat.} 23. Ne1 {[%emt 0:09:00] Prevents Rc2.} Rb8 {[%emt 0:09:30] Weighted Error Value: White=0.11 (very precise) /Black=0.01 (flawless)} 1/2-1/2

[Event "55th Iranian-ch Men Final 2022"]
[Site "Iran"]
[Date "2022.06.16"]
[Round "2.7"]
[White "Daghli, Arash"]
[Black "Poormosavi, Seyed Kian"]
[Result "1-0"]
[ECO "B15"]
[WhiteElo "2441"]
[BlackElo "2358"]
[Annotator "TA"]
[PlyCount "38"]
[EventDate "2022.06.15"]
[EventType "tourn"]
[EventCountry "IRI"]
[SourceTitle "playchess.com"]
[Source "ChessBase"]
[SourceQuality "1"]
[TimeControl "40/5400+30:1800+30"]

{[%evp 12,38,27,20,37,44,37,37,48,40,46,29,38,48,73,70,75,92,81,30,36,9,17,11,84,86,96,97,90]} 1. e4 {[%emt 0:03:24]} c6 {[%emt 0:01:48]} 2. d4 {[%emt 0:00:23]} d5 {[%emt 0:00:10]} 3. Nd2 {[%emt 0:00:19]} dxe4 {[%emt 0:00:10]} 4. Nxe4 {[%emt 0:00:13]} Nf6 {[%emt 0:00:08]} 5. Nxf6+ {[%emt 0:00:08]} exf6 {[%emt 0:00:09]} 6. c3 {[%emt 0:00:17]} Bd6 {[%emt 0:00:11]} 7. Bd3 {[%emt 0:00:15]} Na6 {[%emt 0:00:06] B15: Caro-Kann: 3 Nc3: 3...g6 and 3...dxe4 4 Nxe4 Nf6 5 Nxf6+ exf6.} 8. Ne2 {[%emt 0:00:42]} Nc7 {[%emt 0:00:37]} 9. Qc2 {[%emt 0:05:58]} h5 {[%emt 0:00:09] White is slightly better.} 10. O-O {[%emt 0:02:39]} O-O {[%emt 0:00:18]} 11. c4 {[%emt 0:10:21]} Re8 {[%emt 0:09:56]} 12. Be3 {[%emt 0:00:12] [#]} Bg4 $146 {[%emt 0:06:22]} ({Predecessor:} 12... Be6 13. Nf4 Bxf4 14. Bxf4 Qd7 15. h3 Rac8 16. Rad1 g6 17. Rfe1 Kg7 18. Qc3 Bf5 19. Rxe8 Nxe8 {1-0 (26) Tsydypov,Z (2568)-Hamitevici,V (2480) St Petersburg 2019}) 13. Nc3 {[%emt 0:05:19]} h4 {[%emt 0:12:07]} 14. h3 {[%emt 1:07:20]} Bh5 15. c5 {[%emt 0:00:00]} (15. Rae1 $16) 15... Bf8 $11 {[%emt 0:04:26]} 16. b4 {[%emt 0:00:00]} g6 {[%emt 0:07:46]} 17. Bc4 {[%emt 0:00:00]} Qd7 {[%emt 0:19:44] [#]} (17... f5 $1 $11 {remains equal.}) 18. Rad1 $1 $16 {[%emt 0:00:00] White is more active.} Nd5 {[%emt 0:16:38]} (18... Bg7 19. Rd2) 19. Bxd5 {[%emt 0:00:00]} cxd5 {[%emt 0:00:24] Weighted Error Value: White=0.06 (flawless) /Black=0.15 (very precise)} 1-0

[Event "55th Iranian-ch Men Final 2022"]
[Site "Iran"]
[Date "2022.06.16"]
[Round "3.1"]
[White "Poormosavi, Seyed Kian"]
[Black "Mosadeghpour, Masoud"]
[Result "0-1"]
[ECO "B51"]
[WhiteElo "2358"]
[BlackElo "2474"]
[Annotator "RC"]
[PlyCount "52"]
[EventDate "2022.06.15"]
[EventType "tourn"]
[EventCountry "IRI"]
[SourceTitle "playchess.com"]
[Source "ChessBase"]
[SourceQuality "1"]
[TimeControl "40/5400+30:1800+30"]

1. e4 {[%emt 0:00:05]} c5 {[%emt 0:11:38]} 2. Nf3 {[%emt 0:00:12]} d6 {[%emt 0:00:23]} 3. Bb5+ {[%emt 0:00:09]} Nc6 {[%emt 0:01:11]} 4. O-O {[%emt 0:00:16]} Bd7 {[%emt 0:00:44]} 5. Re1 {[%emt 0:00:07]} Nf6 {[%emt 0:04:31]} 6. c3 {[%emt 0:00:15]} a6 {[%emt 0:00:41]} 7. Bf1 {[%emt 0:00:19]} Bg4 {[%emt 0:04:45]} 8. h3 {[%emt 0:02:42]} Bh5 {[%emt 0:02:22]} 9. d3 {[%emt 0:22:42]} e5 {[%emt 0:09:27]} 10. g4 {[%emt 0:07:36]} Bg6 {[%emt 0:01:14]} 11. Nh4 {[%emt 0:06:43]} Nd7 {[%emt 0:16:26]} 12. Nf5 {[%emt 0:11:06]} h5 {[%emt 0:06:54]} 13. g5 {[%emt 0:01:32]} Bh7 {[%emt 0:09:40]} 14. h4 {[%emt 0:03:45]} f6 {[%emt 0:03:01]} 15. Ng3 {[%emt 0:12:22]} g6 {[%emt 0:03:19]} 16. Nxh5 {[%emt 0:05:43]} gxh5 {[%emt 0:02:38]} 17. Qxh5+ {[%emt 0:06:31]} Ke7 {[%emt 0:00:16]} 18. gxf6+ {[%emt 0:06:35]} Nxf6 {[%emt 0:01:04]} 19. Bg5 {[%emt 0:00:04]} Qe8 {[%emt 0:05:58]} 20. Qg4 {[%emt 0:03:53]} Bh6 {[%emt 0:04:35]} 21. Bh3 {[%emt 0:03:50]} Bxg5 {[%emt 0:02:02]} 22. Qe6+ {[%emt 0:01:59]} Kf8 {[%emt 0:00:02]} 23. Qxd6+ {[%emt 0:00:55]} Qe7 {[%emt 0:00:15]} 24. Qxe7+ {[%emt 0:00:27]} Kxe7 {[%emt 0:00:02]} 25. hxg5 {[%emt 0:00:09]} Rag8 {[%emt 0:00:13]} 26. Re3 {[%emt 0:01:41]} Rxg5+ {[%emt 0:00:22]} 0-1

[Event "55th Iranian-ch Men Final 2022"]
[Site "Iran"]
[Date "2022.06.16"]
[Round "3.2"]
[White "Naderi, Abdollah"]
[Black "Daghli, Arash"]
[Result "0-1"]
[ECO "A37"]
[WhiteElo "2050"]
[BlackElo "2441"]
[Annotator "TA"]
[PlyCount "102"]
[EventDate "2022.06.15"]
[EventType "tourn"]
[EventCountry "IRI"]
[SourceTitle "playchess.com"]
[Source "ChessBase"]
[SourceQuality "1"]
[TimeControl "40/5400+30:1800+30"]

{[%evp 22,102,0,-20,16,0,0,-6,13,6,12,0,35,0,18,-13,0,-21,-28,-41,-2,-38,-31,-39,-30,-25,-25,-31,-30,-99,-22,-93,-97,-55,0,-97,-96,-99,-107,-93,-81,-79,-64,-63,-59,-59,-61,-59,-50,-80,0,-50,-9,-216,-209,-211,-205,-176,-159,-167,-163,-239,-158,-249,-229,-617,-673,-936,-927,-856,-558,-519,-546,-575,-558,-768,-739,-766,-689,-2197,-2311,-1423,-805]} 1. Nf3 {[%emt 0:05:16]} c5 {[%emt 0:01:00]} 2. g3 {[%emt 0:00:58]} Nc6 {[%emt 0:00:24]} 3. c4 {[%emt 0:00:48]} g6 {[%emt 0:01:13]} 4. Bg2 {[%emt 0:02:24]} Bg7 {[%emt 0:00:09]} 5. Nc3 {[%emt 0:01:04]} d6 {[%emt 0:00:07]} 6. O-O {[%emt 0:00:28]} e5 {[%emt 0:00:07]} 7. d3 {[%emt 0:00:49]} Nge7 {[%emt 0:00:45]} 8. Ne1 {[%emt 0:00:14][%cal Bf3e1,Be1c2,Bc2e3,Be3d5][%mdl 32]} Be6 {[%emt 0:01:06]} 9. Nc2 {[%emt 0:04:37]} O-O {[%emt 0:04:42]} 10. Ne3 {[%emt 0:01:25]} Rb8 {[%emt 0:02:07]} 11. Ned5 {[%emt 0:04:18]} a6 {[%emt 0:02:07]} 12. a4 {[%emt 0:02:03][%cal Oa4a5]} h6 {[%emt 0:00:58] A37: Symmetrical English vs ...g6: 4 Bg2 Bg7 5 Nf3.} 13. Rb1 {[%emt 0:00:32]} Nb4 {[%emt 0:04:39]} 14. Bd2 {[%emt 0:02:37] [#]} a5 $146 {[%emt 0:31:38] The position is equal.} ({Predecessor:} 14... Bxd5 15. Nxd5 Nbxd5 16. cxd5 a5 17. Rc1 b5 18. Qe1 bxa4 19. Bxa5 Qd7 20. Bc3 Rb3 {½-½ (53) Saraci,N (2108)-Vucinic,G (2320) Skopje 2015}) 15. f4 {[%emt 0:09:04]} Kh7 {[%emt 0:06:39]} 16. fxe5 {[%emt 0:13:25]} Bxe5 {[%emt 0:05:08]} 17. Nf4 {[%emt 0:05:39]} ({Reject} 17. Nf6+ Bxf6 18. Rxf6 Nf5 $15) (17. Qc1 $5 {[%cal Rd2h6]}) 17... Bd7 {[%emt 0:08:13]} 18. Nfd5 {[%emt 0:17:41]} f5 {[%emt 0:08:13]} 19. Nxe7 {[%emt 0:02:45]} Qxe7 {[%emt 0:00:02]} 20. Nd5 {[%emt 0:00:17]} Qg7 {[%emt 0:02:06]} 21. Bxb4 {[%emt 0:03:52]} axb4 {[%emt 0:00:02]} 22. b3 {[%emt 0:00:24]} h5 {[%emt 0:02:32][%cal Oh5h4]} 23. e3 {[%emt 0:03:00]} Rbe8 {[%emt 0:03:30]} 24. Qf3 {[%emt 0:03:12]} Bc6 {[%emt 0:02:43]} 25. Kh1 {[%emt 0:03:22] [#]} (25. Rbe1 $11) 25... Bc3 {[%emt 0:02:01]} (25... Qh6 $1 $17) 26. Qf2 {[%emt 0:00:59]} (26. Qf4 $11 {keeps the balance.}) 26... Bxd5 $17 {[%emt 0:05:03]} 27. Bxd5 {[%emt 0:00:17]} b6 {[%emt 0:00:23]} ({Better is} 27... Qh6 $15) 28. Qf4 {[%emt 0:01:12]} (28. Qe2 $11 {remains equal.}) 28... Bd2 {[%emt 0:02:42]} 29. Qxd6 {[%emt 0:04:48]} Rf6 {[%emt 0:00:00]} 30. Qf4 {[%emt 0:00:12]} Bxe3 {[%emt 0:00:40]} 31. Qf3 {[%emt 0:00:10]} Bd2 {[%emt 0:00:17] Against Rbe1} 32. Rb2 $1 {[%emt 0:01:13]} Bc3 $36 {[%emt 0:03:44][%mdl 2048] Black has some pressure. Black is more active.} 33. Re2 {[%emt 0:00:05]} Rff8 {[%emt 0:00:37]} 34. Rff2 {[%emt 0:00:50]} Qh6 {[%emt 0:00:54]} 35. Kg2 {[%emt 0:01:37]} Bd4 {[%emt 0:00:45]} (35... h4 $17 {...h3+ is the strong threat.} 36. Qf4 Qxf4 37. gxf4 Bd4) 36. Rf1 {[%emt 0:00:40]} ({White should try} 36. Bc6 $11 Rxe2 37. Rxe2) 36... h4 {[%emt 0:00:42]} 37. gxh4 $2 {[%emt 0:03:57] [#] White does not recover from this.} (37. Rfe1 $11 Rxe2+ 38. Qxe2) 37... Qxh4 $19 {[%emt 0:00:13]} ({Weaker is} 37... Rxe2+ 38. Qxe2 Qxh4 39. Kh1 $15) 38. Kh1 {[%emt 0:01:13]} Kg7 {[%emt 0:00:46]} 39. Bc6 {[%emt 0:01:02]} Rxe2 {[%emt 0:00:17]} 40. Qxe2 {[%emt 0:00:00]} Rf7 {[%emt 0:00:00] And now ...Re7 would win.} 41. Qe1 {[%emt 0:03:38]} (41. Qg2 {was called for.}) 41... Qg5 {[%emt 0:05:56]} 42. Qd1 {[%emt 0:03:06]} (42. Qg3 $17 Qxg3 43. hxg3) 42... Kf6 {[%emt 0:09:58] Threatens to win with ...Rh7.} 43. Re1 $2 {[%emt 0:01:53]} (43. Qf3) 43... Rh7 {[%emt 0:01:13] Black is clearly winning.} 44. Qe2 {[%emt 0:01:02]} Qf4 {[%emt 0:01:10]} 45. Qg2 {[%emt 0:04:38]} Be5 {[%emt 0:00:41][%cal Rh7h2]} 46. h3 {[%emt 0:02:51]} Qh6 {[%emt 0:00:31]} ({Worse is} 46... Qg3 47. Qxg3 Bxg3 48. Re8 $15) 47. d4 {[%emt 0:06:11]} cxd4 {[%emt 0:03:04]} 48. c5 {[%emt 0:01:15]} bxc5 {[%emt 0:04:57]} 49. Bf3 {[%emt 0:00:47]} Qxh3+ {[%emt 0:00:52]} 50. Kg1 {[%emt 0:00:20]} Qh4 {[%emt 0:00:45]} 51. Qe2 {[%emt 0:01:53]} Qg3+ {[%emt 0:00:54] Weighted Error Value: White=0.62/Black=0.21 (precise)} 0-1

[Event "55th Iranian-ch Men Final 2022"]
[Site "Iran"]
[Date "2022.06.16"]
[Round "3.3"]
[White "Omidi, Arya"]
[Black "Daneshvar, Bardiya"]
[Result "1/2-1/2"]
[ECO "C45"]
[WhiteElo "2321"]
[BlackElo "2486"]
[Annotator "TA"]
[PlyCount "48"]
[EventDate "2022.06.15"]
[EventType "tourn"]
[EventCountry "IRI"]
[SourceTitle "playchess.com"]
[Source "ChessBase"]
[SourceQuality "1"]
[TimeControl "40/5400+30:1800+30"]

{[%evp 14,48,-11,-20,0,0,0,0,28,28,22,27,21,19,31,9,40,30,50,7,6,1,7,0,0,0,2,5,6,5,12,5,8,9,11,0,20]} 1. e4 {[%emt 0:00:03]} e5 {[%emt 0:00:07]} 2. Nf3 {[%emt 0:00:06]} Nc6 {[%emt 0:00:03]} 3. d4 {[%emt 0:00:04]} exd4 {[%emt 0:00:16]} 4. Nxd4 {[%emt 0:00:02]} Nf6 {[%emt 0:00:07]} 5. Nxc6 {[%emt 0:00:36]} bxc6 {[%emt 0:00:07]} 6. e5 {[%emt 0:00:05]} Qe7 {[%emt 0:00:25]} 7. Qe2 {[%emt 0:00:09]} Nd5 {[%emt 0:00:08]} 8. h4 {[%emt 0:00:06]} d6 {[%emt 0:05:35] C45: Scotch Game.} 9. c4 {[%emt 0:00:16]} Nb6 {[%emt 0:00:56]} 10. exd6 {[%emt 0:00:03]} Qxe2+ {[%emt 0:00:58]} (10... cxd6 $5 {[%cal Rc8e6]} 11. Be3 d5 $11) 11. Bxe2 {[%emt 0:00:04]} Bxd6 {[%emt 0:00:40]} 12. Nc3 {[%emt 0:01:35]} O-O {[%emt 0:08:54]} 13. Be3 {[%emt 0:09:11][%cal Bc1e3,Be3b6,Bb6c7,Bc7d6][%mdl 32] [#] And now c5 would win.} Bb4 {[%emt 0:06:08]} 14. O-O {[%emt 0:24:51] [#]} Ba6 $146 {[%emt 0:22:59]} ({Predecessor:} 14... Bxc3 15. bxc3 Be6 16. c5 Nd5 17. Bd4 Rab8 18. Bf3 Rfe8 19. Rab1 Bf5 20. Rb3 Bd3 21. Rxb8 Rxb8 {½-½ (35) Carroll,P (2062)-Fox,A (2020) Dublin 2019}) 15. Rfc1 {[%emt 0:14:49]} ({Reject} 15. c5 Bxe2 16. Nxe2 Nc4 $11) 15... Bxc4 {[%emt 0:04:37] ...Bxc3 is the strong threat.} 16. Bxb6 {[%emt 0:01:10] Threatens to win with Bc5.} Bxe2 {[%emt 0:00:20] The position is equal.} 17. Bxc7 {[%emt 0:00:32]} Bc4 {[%emt 0:05:19]} 18. Rd1 {[%emt 0:08:29]} Rfc8 {[%emt 0:04:51]} 19. Bd6 {[%emt 0:05:43]} Bxc3 {[%emt 0:03:07]} 20. bxc3 {[%emt 0:00:10]} c5 {[%emt 0:00:31]} 21. a4 {[%emt 0:05:57]} Bb3 {[%emt 0:03:32]} 22. Re1 {[%emt 0:01:39]} Rc6 {[%emt 0:02:48]} 23. Bf4 {[%emt 0:00:14]} a5 {[%emt 0:05:03]} 24. Re5 {[%emt 0:02:38]} h6 {[%emt 0:02:20] Weighted Error Value: White=0.05 (flawless) /Black=0.06 (flawless)} 1/2-1/2

[Event "55th Iranian-ch Men Final 2022"]
[Site "Iran"]
[Date "2022.06.16"]
[Round "3.4"]
[White "Rastbod, Ali"]
[Black "Khamisi, S Jafar"]
[Result "1/2-1/2"]
[ECO "D23"]
[WhiteElo "2362"]
[BlackElo "2118"]
[Annotator "TA"]
[PlyCount "73"]
[EventDate "2022.06.15"]
[EventType "tourn"]
[EventCountry "IRI"]
[SourceTitle "playchess.com"]
[Source "ChessBase"]
[SourceQuality "1"]
[TimeControl "40/5400+30:1800+30"]

{[%evp 9,73,-6,15,15,8,16,20,11,21,24,21,0,0,-4,-10,-28,-14,-34,3,0,23,16,27,8,30,26,77,0,0,-54,-68,-87,-70,-72,-63,-69,-66,-94,-29,-37,-34,-29,-27,-23,0,0,0,-52,-52,-43,0,-106,-106,-106,0,0,0,-20,0,0,0,-10,0,0,0,0]} 1. d4 {[%emt 0:06:43]} d5 {[%emt 0:00:09]} 2. c4 {[%emt 0:00:04]} c6 {[%emt 0:00:06]} 3. Nf3 {[%emt 0:00:03]} Nf6 {[%emt 0:00:07]} 4. Qb3 {[%emt 0:00:04]} dxc4 {[%emt 0:00:33]} 5. Qxc4 {[%emt 0:00:02]} Bg4 {[%emt 0:00:31]} 6. Nc3 {[%emt 0:00:04] D23: Queen's Gambit Accepted: 3 Nf3 Nf6 sidelines.} Nbd7 {[%emt 0:01:05]} 7. Bf4 $1 {[%emt 0:00:13][%mdl 4] is currently scoring better than 7.e4.} e6 {[%emt 0:00:58]} 8. e4 {[%emt 0:02:24]} Bxf3 {[%emt 0:08:32]} 9. gxf3 {[%emt 0:00:50]} Be7 {[%emt 0:00:25] [#]} 10. Be3 $146 {[%emt 0:16:30]} ({Predecessor:} 10. O-O-O Rc8 11. Kb1 O-O 12. Rg1 Kh8 13. Bh3 b5 14. Qf1 Qa5 15. Ne2 b4 16. Rg5 {1-0 (67) Erigaisi,A (2634)-Goryachkina,A (2602) Riga 2021}) 10... O-O {[%emt 0:02:35]} 11. Be2 {[%emt 0:14:07]} Rc8 {[%emt 0:12:04]} 12. O-O-O {[%emt 0:21:34]} b5 {[%emt 0:04:06]} 13. Qd3 {[%emt 0:07:02]} Qa5 {[%emt 0:02:28]} (13... Nb6 $5 {[%cal Rb5b4]} 14. Qc2 Qc7 $11) 14. e5 {[%emt 0:00:27]} Nd5 {[%emt 0:15:14]} 15. Nxd5 {[%emt 0:00:16]} cxd5+ {[%emt 0:00:10]} 16. Kb1 {[%emt 0:00:00]} a6 {[%emt 0:00:16]} 17. f4 {[%emt 0:00:27]} Nb6 {[%emt 0:02:12]} (17... f5 $11 {keeps the balance.}) 18. Bd2 {[%emt 0:12:27]} (18. Bg4 $16) 18... Bb4 $1 $11 {[%emt 0:00:59]} 19. a3 {[%emt 0:07:32]} ({Better is} 19. Be3 $11) 19... Bxd2 $15 {[%emt 0:00:39]} 20. Qxd2 {[%emt 0:00:01]} Qa4 {[%emt 0:04:23][%cal Ob5b4]} 21. Bd3 {[%emt 0:01:23]} Nc4 {[%emt 0:03:24]} 22. Qb4 {[%emt 0:01:44]} Qxb4 {[%emt 0:08:18]} 23. axb4 {[%emt 0:00:01]} g6 {[%emt 0:00:14] Inhibits f5.} (23... f6 $17 {aiming for ...fxe5.} 24. b3 fxe5 25. bxc4 bxc4) 24. b3 $11 {[%emt 0:00:35]} Nb6 {[%emt 0:00:14]} 25. h4 {[%emt 0:01:08]} Kg7 {[%emt 0:15:27]} 26. h5 {[%emt 0:03:47]} Rg8 {[%emt 0:00:51]} (26... Nd7 $5 {[%cal Rd7b8]}) 27. Kb2 {[%emt 0:02:12]} Nd7 $1 {[%emt 0:08:37]} 28. Rdg1 {[%emt 0:00:52]} ({White should play} 28. Rc1 $11) 28... Kf8 $1 $15 {[%emt 0:08:33]} 29. Rh4 {[%emt 0:00:10]} Ke7 {[%emt 0:00:25]} (29... Nb8 $5 {[%cal Rb8c6]}) 30. Rhg4 {[%emt 0:00:51]} (30. hxg6 $11 hxg6 31. Ra1) 30... Rgf8 $17 {[%emt 0:00:30]} 31. Rh4 {[%emt 0:00:27][%cal Rh5g6] [#]} Rg8 {[%emt 0:01:13]} (31... Nb8 $1 $17 {With the idea ...Nc6.} 32. Ra1 Rc7) 32. hxg6 $11 {[%emt 0:00:41] The position is equal.} hxg6 {[%emt 0:00:06]} 33. Rh7 {[%emt 0:00:05]} Nf8 {[%emt 0:00:53]} 34. Rh4 {[%emt 0:01:01]} Nd7 {[%emt 0:00:07] next ...Rh8 is good for Black.} 35. Rh7 {[%emt 0:00:17]} Nf8 {[%emt 0:00:10]} 36. Rh4 {[%emt 0:00:39]} Nd7 {[%emt 0:00:05]} 37. Rh7 {[%emt 0:00:13] Weighted Error Value: White=0.16 (very precise) /Black=0.15 (very precise)} 1/2-1/2